fUSD/lending_fUSD_20250610
["ID","MTS","AMOUNT","RATE_DAILY","PERIOD"]
[365295048,1749584975940,490.0,0.00016602,2]
[365295049,1749584976166,490.0,0.00017424,2]
[365295050,1749584976206,490.0,0.00016767,2]
[365295051,1749584976418,480.73,0.00016438,2]
[365295052,1749584976458,490.0,0.00016931,2]
[365295053,1749584976714,490.0,0.00017095,2]
[365295054,1749584976978,490.0,0.0001726,2]
[365295055,1749584977236,490.0,0.00017424,2]
[365295056,1749584977489,480.0,0.00016438,2]
[365295057,1749584978011,490.0,0.00016438,2]
[365295058,1749584978218,490.0,0.00016438,2]
[365295059,1749584978261,470.11,0.00016602,2]
[365295060,1749584978469,490.0,0.00016602,2]
[365295061,1749584978735,490.0,0.00016767,2]
[365295062,1749584978969,490.0,0.00016931,2]
[365295063,1749584979209,490.0,0.00017095,2]
[365295064,1749584979454,490.0,0.0001726,2]
[365295065,1749584979565,313.82519706,0.00016438,2]
[365295066,1749584979745,490.0,0.00017424,2]
[365295067,1749584985113,490.0,0.00016438,2]
[365295068,1749584985386,490.0,0.00016602,2]
[365295069,1749584985726,490.0,0.00016438,2]
[365295070,1749584985760,478.96670728,0.00016767,2]
[365295071,1749584985812,490.0,0.00016602,2]
[365295072,1749584986056,319.82709358,0.00016767,2]
[365295073,1749584986517,480.0,0.00016438,2]
[365295074,1749584986908,490.0,0.00016438,2]
[365295075,1749584987540,490.0,0.00016438,2]
[365295076,1749584987787,470.0,0.00016602,2]
[365295077,1749584989054,490.0,0.00016438,2]
[365295078,1749584991257,490.0,0.00016438,2]
[365295079,1749584991524,490.0,0.00016602,2]
[365295080,1749584991765,232.97,0.00016767,2]
[365295081,1749584993641,490.0,0.00016438,2]
[365295082,1749584993713,490.0,0.00016438,2]
[365295083,1749584993790,480.0,0.00016438,2]
[365295084,1749584993898,490.0,0.00016602,2]
[365295085,1749584993964,490.0,0.00016602,2]
[365295086,1749584994172,221.53136578,0.00016767,2]
[365295087,1749584994916,480.0,0.00016438,2]
[365295088,1749584995593,490.0,0.00016767,2]
[365295089,1749584995915,490.0,0.00016931,2]
[365295090,1749584996171,183.79,0.00017095,2]
[365295091,1749584996955,480.0,0.00016438,2]
[365295092,1749584998315,542.48620856,0.00016438,2]
[365295093,1749585000085,490.0,0.00016438,2]
[365295094,1749585000442,490.0,0.00016602,2]
[365295095,1749585000755,490.0,0.00016767,2]
[365295096,1749585001337,490.0,0.00016931,2]
[365295097,1749585001477,490.0,0.00017095,2]
[365295098,1749585001696,490.0,0.00016438,2]
[365295099,1749585001947,470.0,0.00016602,2]
[365295100,1749585002130,490.0,0.0001726,2]
[365295101,1749585002641,490.0,0.00017424,2]
[365295102,1749585003297,484.13745827,0.00016438,2]
[365295103,1749585004503,490.0,0.00016438,2]
[365295104,1749585004822,470.0,0.00016602,2]
[365295105,1749585006321,490.0,0.00016438,2]
[365295106,1749585006553,490.0,0.00016438,2]
[365295107,1749585006592,490.0,0.00016602,2]
[365295108,1749585006808,490.0,0.00016602,2]
[365295109,1749585006836,490.0,0.00016767,2]
[365295110,1749585007160,490.0,0.00016931,2]
[365295111,1749585007192,460.0,0.00016767,2]
[365295112,1749585007220,200.0,0.00017489,2]
[365295113,1749585007344,440.0,0.00017095,2]
[365295114,1749585008413,230.33092419,0.00016438,2]
[365295115,1749585011804,202.0,0.00016701,2]
[365295116,1749585011990,202.0,0.00017271,2]
[365295117,1749585012202,490.0,0.00016438,2]
[365295118,1749585012450,480.54688031,0.00016602,2]
[365295119,1749585012715,490.0,0.00016438,2]
[365295120,1749585012978,228.09,0.00016602,2]
[365295122,1749585014487,490.0,0.00016438,2]
[365295123,1749585014724,572.19,0.00016438,2]
[365295124,1749585014754,490.0,0.00016602,2]
[365295125,1749585014782,517.2006859,0.00016438,2]
[365295126,1749585014959,572.19,0.00016602,2]
[365295127,1749585015204,218.91,0.00016767,2]
[365295128,1749585015558,572.19,0.00016767,2]
[365295129,1749585015823,572.19,0.00016931,2]
[365295130,1749585016180,572.19,0.00017095,2]
[365295131,1749585016461,572.19,0.0001726,2]
[365295132,1749585016724,572.19,0.00017424,2]
[365295133,1749585018980,480.0,0.00016438,2]
[365295134,1749585019603,490.0,0.00016438,2]
[365295135,1749585019856,490.0,0.00016602,2]
[365295136,1749585020116,490.0,0.00016767,2]
[365295137,1749585020382,490.0,0.00016931,2]
[365295138,1749585020719,490.0,0.00017095,2]
[365295139,1749585020998,490.0,0.0001726,2]
[365295140,1749585021726,555.61214681,0.00017424,2]
[365295141,1749585022759,490.0,0.00016438,2]
[365295142,1749585023023,470.0,0.00016602,2]
[365295143,1749585024889,348.646795,0.00016438,2]
[365295144,1749585024981,221.81437114,0.00018938,30]
[365295145,1749585025383,490.0,0.00016438,2]
[365295146,1749585025621,470.0,0.00016602,2]
[365295147,1749585026619,480.0,0.00016438,2]
[365295148,1749585026780,480.0,0.00016438,2]
[365295149,1749585026866,490.0,0.00016438,2]
[365295150,1749585027181,528.81804238,0.00016602,2]
[365295151,1749585027299,280.04,0.00016438,2]
[365295152,1749585028130,490.0,0.00016438,2]
[365295153,1749585029546,490.0,0.00016438,2]
[365295154,1749585029829,483.15229439,0.00016602,2]
[365295155,1749585030196,490.0,0.00016438,2]
[365295156,1749585030328,490.0,0.00016438,2]
[365295157,1749585030459,480.0,0.00016438,2]
[365295158,1749585030580,470.0,0.00016602,2]
[365295159,1749585030631,245.21,0.00016602,2]
[365295160,1749585030823,490.0,0.00016438,2]
[365295161,1749585031077,490.0,0.00016602,2]
[365295162,1749585031320,490.0,0.00016767,2]
[365295163,1749585031569,490.0,0.00016931,2]
[365295167,1749585031624,-300.0,0.00017588,2]
[365295169,1749585031634,-5.125,0.00017588,2]
[365295171,1749585031681,-1194.875,0.00017588,2]
[365295172,1749585031691,-72.45307528,0.00017589,2]
[365295173,1749585031701,-502.09,0.00017589,2]
[365295174,1749585031710,-550.28,0.00017589,2]
[365295175,1749585031719,-173.65247198,0.00017589,2]
[365295176,1749585031729,-490.0,0.00017589,2]
[365295177,1749585031738,-90.18945274,0.00017589,2]
[365295178,1749585031754,-449.04054726,0.00017589,2]
[365295179,1749585031763,-652.75,0.00017589,2]
[365295180,1749585031773,-490.0,0.00017589,2]
[365295181,1749585031782,-4170.46,0.00017589,2]
[365295182,1749585031791,-220.61182839,0.00017589,2]
[365295183,1749585031801,-490.0,0.00017589,2]
[365295184,1749585031810,-490.0,0.00017589,2]
[365295185,1749585031820,-490.0,0.00017589,2]
[365295186,1749585031829,-490.0,0.00017589,2]
[365295187,1749585031839,-490.0,0.00017589,2]
[365295188,1749585031849,-490.0,0.00017589,2]
[365295189,1749585031862,-572.19,0.00017589,2]
[365295190,1749585031871,-150.0,0.00017665,7]
[365295191,1749585031881,-550.0,0.00017752,2]
[365295192,1749585031891,-166.36499488,0.00017752,2]
[365295193,1749585031900,-500.0,0.00017752,2]
[365295194,1749585031910,-500.0,0.00017752,2]
[365295195,1749585031919,-500.87463096,0.00017752,2]
[365295196,1749585031932,-500.0,0.00017752,2]
[365295197,1749585031942,-228.44,0.00017753,2]
[365295198,1749585031952,-656.96,0.00017753,2]
[365295199,1749585031962,-490.0,0.00017753,2]
[365295200,1749585031971,-490.0,0.00017753,2]
[365295201,1749585031980,-180.41,0.00017753,2]
[365295202,1749585031989,-490.0,0.00017753,2]
[365295203,1749585031998,-742.68,0.00017753,2]
[365295204,1749585032009,-490.0,0.00017753,2]
[365295205,1749585032018,-502.09,0.00017753,2]
[365295206,1749585032027,-550.28,0.00017753,2]
[365295207,1749585032036,-490.0,0.00017753,2]
[365295208,1749585032046,-539.23,0.00017753,2]
[365295209,1749585032055,-652.75,0.00017753,2]
[365295210,1749585032064,-490.0,0.00017753,2]
[365295211,1749585032074,-4170.46,0.00017753,2]
[365295212,1749585032084,-490.0,0.00017753,2]
[365295213,1749585032093,-490.0,0.00017753,2]
[365295214,1749585032103,-490.0,0.00017753,2]
[365295215,1749585032112,-490.0,0.00017753,2]
[365295216,1749585032121,-490.0,0.00017753,2]
[365295217,1749585032131,-572.19,0.00017753,2]
[365295218,1749585032141,-200.0,0.00017755,2]
[365295219,1749585032150,-250.0,0.0001776,2]
[365295220,1749585032159,-192.82,0.00017797,2]
[365295221,1749585032168,-1246.245,0.00017797,2]
[365295222,1749585032179,-30600.63,0.000178,2]
[365295223,1749585032191,-201.0,0.00017808,2]
[365295224,1749585032201,-202.0,0.00017841,3]
[365295225,1749585032210,-2119.97,0.00017854,2]
[365295226,1749585032219,-656.96,0.00017917,2]
[365295227,1749585032230,-490.0,0.00017917,2]
[365295228,1749585032240,-490.0,0.00017917,2]
[365295229,1749585032251,-519.29728618,0.00017917,2]
[365295230,1749585032262,-742.68,0.00017917,2]
[365295231,1749585032273,-490.0,0.00017917,2]
[365295232,1749585032282,-502.09,0.00017917,2]
[365295233,1749585032292,-550.28,0.00017917,2]
[365295234,1749585032302,-490.0,0.00017917,2]
[365295235,1749585032312,-539.23,0.00017917,2]
[365295236,1749585032322,-652.75,0.00017917,2]
[365295237,1749585032332,-490.0,0.00017917,2]
[365295238,1749585032341,-4170.46,0.00017917,2]
[365295239,1749585032351,-490.0,0.00017917,2]
[365295240,1749585032361,-490.0,0.00017917,2]
[365295241,1749585032371,-490.0,0.00017917,2]
[365295242,1749585032380,-490.0,0.00017917,2]
[365295243,1749585032390,-490.0,0.00017917,2]
[365295244,1749585032399,-572.19,0.00017917,2]
[365295245,1749585032408,-3992.37,0.00018036,2]
[365295246,1749585032417,-1000.0,0.00018072,2]
[365295247,1749585032428,-656.96,0.00018082,2]
[365295248,1749585032437,-490.0,0.00018082,2]
[365295249,1749585032447,-490.0,0.00018082,2]
[365295250,1749585032456,-742.68,0.00018082,2]
[365295251,1749585032466,-490.0,0.00018082,2]
[365295252,1749585032476,-502.09,0.00018082,2]
[365295253,1749585032485,-550.28,0.00018082,2]
[365295254,1749585032494,-490.0,0.00018082,2]
[365295255,1749585032503,-539.23,0.00018082,2]
[365295256,1749585032513,-652.75,0.00018082,2]
[365295257,1749585032522,-577.87992653,0.00018082,2]
[365295258,1749585032532,-4170.46,0.00018082,2]
[365295259,1749585032543,-490.0,0.00018082,2]
[365295260,1749585032552,-490.0,0.00018082,2]
[365295261,1749585032562,-490.0,0.00018082,2]
[365295262,1749585032572,-490.0,0.00018082,2]
[365295263,1749585032581,-490.0,0.00018082,2]
[365295264,1749585032591,-572.19,0.00018082,2]
[365295265,1749585032601,-666.0,0.00018111,2]
[365295266,1749585032612,-833.29909032,0.00018175,2]
[365295267,1749585032622,-593.74,0.00018192,2]
[365295268,1749585032632,-175.41,0.00018221,2]
[365295269,1749585032642,-51.93059414,0.00018246,2]
[365295270,1749585032849,-605.02940586,0.00018246,2]
[365295271,1749585032858,-490.0,0.00018246,2]
[365295272,1749585032867,-490.0,0.00018246,2]
[365295273,1749585032877,-742.68,0.00018246,2]
[365295274,1749585032886,-490.0,0.00018246,2]
[365295275,1749585032895,-502.09,0.00018246,2]
[365295276,1749585032909,-550.28,0.00018246,2]
[365295277,1749585032918,-490.0,0.00018246,2]
[365295278,1749585032930,-539.23,0.00018246,2]
[365295279,1749585032943,-652.75,0.00018246,2]
[365295280,1749585032953,-801.93377604,0.00018246,2]
[365295281,1749585032965,-3368.52622396,0.00018246,2]
[365295282,1749585032975,-490.0,0.00018246,2]
[365295283,1749585032985,-490.0,0.00018246,2]
[365295284,1749585032995,-490.0,0.00018246,2]
[365295285,1749585033005,-490.0,0.00018246,2]
[365295286,1749585033017,-490.0,0.00018246,2]
[365295287,1749585033028,-572.19,0.00018246,2]
[365295288,1749585033038,-164.28,0.00018285,2]
[365295289,1749585033048,-814.73570688,0.00018351,2]
[365295291,1749585033058,-2030.296672,0.00018351,2]
[365295293,1749585033068,-151.0,0.00018351,2]
[365295295,1749585033077,-500.0,0.00018351,2]
[365295297,1749585033087,-151.0,0.00018351,2]
[365295299,1749585033099,-500.0,0.00018351,2]
[365295301,1749585033109,-500.0,0.00018351,2]
[365295302,1749585033120,-93.66196115,0.00018351,2]
[365295303,1749585033133,-406.33803885,0.00018351,2]
[365295304,1749585033144,-693.3919763,0.00018351,2]
[365295306,1749585033154,-500.0,0.00018351,2]
[365295308,1749585033164,-500.0,0.00018351,2]
[365295311,1749585033175,-207.4,0.00018351,2]
[365295312,1749585033190,-500.0,0.00018351,2]
[365295314,1749585033200,-500.0,0.00018351,2]
[365295316,1749585033211,-500.0,0.00018351,2]
[365295318,1749585033222,-500.0,0.00018351,2]
[365295320,1749585033234,-500.0,0.00018351,2]
[365295322,1749585033245,-98.626689,0.00018351,2]
[365295326,1749585033277,490.0,0.00017095,2]
[365295330,1749585033307,490.0,0.00016438,2]
[365295331,1749585033327,-401.373311,0.00018351,2]
[365295332,1749585033337,-500.0,0.00018351,2]
[365295334,1749585033347,-98.626689,0.00018351,2]
[365295335,1749585033377,490.0,0.00016602,2]
[365295336,1749585033406,490.0,0.0001726,2]
[365295337,1749585033493,460.0,0.00016767,2]
[365295338,1749585033532,490.0,0.00017424,2]
[365295339,1749585033587,582.2087091,0.00016438,2]
[365295340,1749585033620,490.0,0.00016438,2]
[365295341,1749585033667,480.0,0.00016602,2]
[365295342,1749585034122,490.0,0.00016438,2]
[365295343,1749585034392,490.0,0.00016602,2]
[365295344,1749585034481,592.82434851,0.00016438,2]
[365295345,1749585034651,460.0,0.00016767,2]
[365295346,1749585034848,490.0,0.00016438,2]
[365295347,1749585034949,480.0,0.00016438,2]
[365295348,1749585035097,470.0,0.00016602,2]
[365295349,1749585035170,490.0,0.00016438,2]
[365295350,1749585035426,490.0,0.00016602,2]
[365295351,1749585035586,480.0,0.00016438,2]
[365295352,1749585035822,490.0,0.00016438,2]
[365295353,1749585036041,490.0,0.00016767,2]
[365295354,1749585036295,490.0,0.00016931,2]
[365295355,1749585036361,490.0,0.00016438,2]
[365295356,1749585036549,490.0,0.00017095,2]
[365295357,1749585036694,480.0,0.00016438,2]
[365295358,1749585036728,490.0,0.00016438,2]
[365295359,1749585036830,490.0,0.0001726,2]
[365295360,1749585037111,490.0,0.00017424,2]
[365295362,1749585037532,490.0,0.00016438,2]
[365295367,1749585037880,-490.0,0.00017589,2]
[365295368,1749585037890,-490.0,0.00017753,2]
[365295369,1749585037899,-500.0,0.00018081,2]
[365295370,1749585037909,-286.50266504,0.00018081,2]
[365295371,1749585037919,-313.71878507,0.00018081,2]
[365295372,1749585037927,-101.373311,0.00018351,2]
[365295373,1749585037940,-500.0,0.00018351,2]
[365295374,1749585037950,-500.0,0.00018351,2]
[365295375,1749585037959,-151.0,0.00018351,2]
[365295376,1749585037968,-796.87,0.00018398,2]
[365295377,1749585037978,-461.25,0.00018398,2]
[365295378,1749585037987,-922.5,0.00018398,2]
[365295379,1749585037996,-796.87,0.00018398,2]
[365295380,1749585038007,-461.25,0.00018398,2]
[365295381,1749585038016,-796.87,0.00018398,2]
[365295382,1749585038026,-796.87,0.00018398,2]
[365295383,1749585038035,-742.68,0.0001841,2]
[365295385,1749585038045,-490.0,0.0001841,2]
[365295386,1749585038054,-502.09,0.0001841,2]
[365295387,1749585038064,-550.28,0.0001841,2]
[365295390,1749585038074,-539.23,0.0001841,2]
[365295393,1749585038085,-652.75,0.0001841,2]
[365295396,1749585038095,-4170.46,0.0001841,2]
[365295399,1749585038104,-490.0,0.0001841,2]
[365295402,1749585038114,-490.0,0.0001841,2]
[365295405,1749585038124,-490.0,0.0001841,2]
[365295408,1749585038134,-490.0,0.0001841,2]
[365295411,1749585038143,-490.0,0.0001841,2]
[365295413,1749585038152,-572.19,0.0001841,2]
[365295415,1749585038162,-202.0,0.00018411,4]
[365295418,1749585038171,-4188.99622279,0.00018438,2]
[365295421,1749585038183,-461.25,0.00018487,2]
[365295424,1749585038194,-461.25,0.00018487,2]
[365295427,1749585038204,-500.0,0.00018493,2]
[365295430,1749585038213,-500.0,0.00018508,2]
[365295433,1749585038223,-500.0,0.00018508,2]
[365295434,1749585038233,-161.83725777,0.00018518,2]
[365295437,1749585038244,-500.0,0.00018538,2]
[365295440,1749585038253,-500.0,0.00018538,2]
[365295442,1749585038262,-500.0,0.00018538,2]
[365295443,1749585038273,-500.0,0.00018538,2]
[365295445,1749585038282,-502.09719273,0.00018538,2]
[365295447,1749585038292,-500.0,0.00018538,2]
[365295450,1749585038302,-554.22319035,0.00018538,2]
[365295451,1749585038311,-500.0,0.00018538,2]
[365295453,1749585038320,-742.68,0.00018575,2]
[365295456,1749585038330,-490.0,0.00018575,2]
[365295458,1749585038339,-502.09,0.00018575,2]
[365295460,1749585038348,-550.28,0.00018575,2]
[365295462,1749585038358,-539.23,0.00018575,2]
[365295464,1749585038367,-652.75,0.00018575,2]
[365295466,1749585038376,-4170.46,0.00018575,2]
[365295468,1749585038386,-490.0,0.00018575,2]
[365295470,1749585038395,-490.0,0.00018575,2]
[365295472,1749585038405,-490.0,0.00018575,2]
[365295474,1749585038414,-490.0,0.00018575,2]
[365295476,1749585038423,-490.0,0.00018575,2]
[365295478,1749585038433,-572.19,0.00018575,2]
[365295480,1749585038442,-4188.99622279,0.000186,2]
[365295482,1749585038451,-500.0,0.00018618,2]
[365295484,1749585038460,-1000.0,0.00018639,2]
[365295486,1749585038470,-742.68,0.00018739,2]
[365295488,1749585038479,-490.0,0.00018739,2]
[365295490,1749585038488,-502.09,0.00018739,2]
[365295492,1749585038497,-550.28,0.00018739,2]
[365295493,1749585038507,-539.23,0.00018739,2]
[365295495,1749585038516,-652.75,0.00018739,2]
[365295497,1749585038525,-4170.46,0.00018739,2]
[365295499,1749585038534,-490.0,0.00018739,2]
[365295501,1749585038544,-490.0,0.00018739,2]
[365295504,1749585038554,-490.0,0.00018739,2]
[365295506,1749585038563,-490.0,0.00018739,2]
[365295508,1749585038574,-490.0,0.00018739,2]
[365295510,1749585038583,-572.19,0.00018739,2]
[365295512,1749585038593,-4188.99622279,0.00018763,2]
[365295514,1749585038603,-937.87,0.000188,2]
[365295516,1749585038612,-937.87,0.000189,2]
[365295518,1749585038621,-690.38684443,0.000189,2]
[365295520,1749585038631,-742.68,0.00018904,2]
[365295522,1749585038640,-490.0,0.00018904,2]
[365295524,1749585038649,-502.09,0.00018904,2]
[365295526,1749585038659,-550.28,0.00018904,2]
[365295528,1749585038669,-539.23,0.00018904,2]
[365295530,1749585038678,-652.75,0.00018904,2]
[365295532,1749585038691,-4170.46,0.00018904,2]
[365295533,1749585038701,-490.0,0.00018904,2]
[365295535,1749585038711,-490.0,0.00018904,2]
[365295537,1749585038720,-490.0,0.00018904,2]
[365295539,1749585038729,-490.0,0.00018904,2]
[365295541,1749585038738,-490.0,0.00018904,2]
[365295543,1749585038747,-572.19,0.00018904,2]
[365295545,1749585038756,-500.0,0.00018904,2]
[365295548,1749585038765,-945.0,0.00018911,2]
[365295551,1749585038774,-3330.0,0.00018911,2]
[365295553,1749585038783,-802.0,0.00018911,2]
[365295556,1749585038792,-637.0,0.00018911,2]
[365295558,1749585038801,-1159.0,0.00018911,2]
[365295560,1749585038810,-558.0,0.00018911,2]
[365295562,1749585038820,-1275.0,0.00018911,2]
[365295564,1749585038829,-2001.0,0.00018911,2]
[365295566,1749585038838,-927.0,0.00018911,2]
[365295568,1749585038846,-472.956,0.00018911,2]
[365295570,1749585038855,-1251.273,0.00018911,2]
[365295572,1749585038864,-7064.0,0.00018911,2]
[365295574,1749585038873,-4085.0,0.00018911,2]
[365295576,1749585038882,-155.0,0.00018911,2]
[365295578,1749585038891,-883.0,0.00018911,2]
[365295580,1749585038900,-690.38684414,0.00018934,2]
[365295582,1749585038909,-461.25,0.00018941,2]
[365295584,1749585038918,-690.38684414,0.00018969,2]
[365295586,1749585038927,-202.0,0.0001898,5]
[365295588,1749585038938,-273.52,0.00019,2]
[365295590,1749585038947,-937.87,0.00019,2]
[365295592,1749585038956,-937.87,0.00019,2]
[365295594,1749585038965,-937.87,0.00019,2]
[365295596,1749585038975,-250.0,0.00019,2]
[365295598,1749585038983,-690.38684414,0.00019003,2]
[365295600,1749585038992,-690.38684414,0.00019038,2]
[365295602,1749585039002,-500.0,0.00019041,2]
[365295604,1749585039011,-500.0,0.00019056,2]
[365295606,1749585039020,-742.68,0.00019068,2]
[365295608,1749585039029,-306.4,0.00019068,2]
[365295610,1749585039038,-502.09,0.00019068,2]
[365295612,1749585039047,-550.28,0.00019068,2]
[365295614,1749585039057,-539.23,0.00019068,2]
[365295616,1749585039066,-652.75,0.00019068,2]
[365295618,1749585039075,-4170.46,0.00019068,2]
[365295620,1749585039084,-490.0,0.00019068,2]
[365295622,1749585039092,-490.0,0.00019068,2]
[365295624,1749585039102,-490.0,0.00019068,2]
[365295626,1749585039111,-490.0,0.00019068,2]
[365295628,1749585039120,-490.0,0.00019068,2]
[365295630,1749585039129,-572.19,0.00019068,2]
[365295632,1749585039139,-690.38684414,0.00019072,2]
[365295634,1749585039149,-500.0,0.00019086,2]
[365295636,1749585039158,-690.38684414,0.00019107,2]
[365295638,1749585039167,-690.38684414,0.00019141,2]
[365295640,1749585039177,-2500.0,0.00019142,2]
[365295642,1749585039193,-166.56336972,0.00019145,2]
[365295644,1749585039202,-164.54146514,0.00019145,2]
[365295646,1749585039212,-690.38684414,0.00019176,2]
[365295648,1749585039222,-500.0,0.00019178,2]
[365295650,1749585039233,-500.0,0.00019178,2]
[365295652,1749585039242,-500.0,0.00019178,2]
[365295654,1749585039251,-500.0,0.00019178,2]
[365295656,1749585039261,-500.0,0.00019178,2]
[365295658,1749585039270,-500.0,0.00019178,2]
[365295660,1749585039280,-500.0,0.00019178,2]
[365295662,1749585039290,-500.0,0.00019178,2]
[365295664,1749585039299,-500.0,0.00019178,2]
[365295666,1749585039309,-500.0,0.00019178,2]
[365295668,1749585039319,-500.0,0.00019178,2]
[365295670,1749585039328,-500.0,0.00019178,2]
[365295671,1749585039339,-500.0,0.00019178,2]
[365295673,1749585039348,-500.0,0.00019178,2]
[365295675,1749585039358,-500.0,0.00019178,2]
[365295677,1749585039368,-500.0,0.00019178,2]
[365295679,1749585039378,-500.0,0.00019178,2]
[365295681,1749585039387,-500.0,0.00019178,2]
[365295683,1749585039396,-500.0,0.00019178,2]
[365295685,1749585039405,-500.0,0.00019178,2]
[365295687,1749585039415,-500.0,0.00019178,2]
[365295689,1749585039424,-647.04824837,0.00019178,2]
[365295691,1749585039438,-500.0,0.00019178,2]
[365295693,1749585039447,-500.0,0.00019178,2]
[365295696,1749585039457,-500.0,0.00019178,2]
[365295698,1749585039466,-500.0,0.00019178,2]
[365295700,1749585039477,-500.0,0.00019178,2]
[365295702,1749585039487,-500.0,0.00019178,2]
[365295704,1749585039497,-500.0,0.00019178,2]
[365295706,1749585039507,-500.0,0.00019178,2]
[365295708,1749585039516,-500.00000001,0.00019178,2]
[365295710,1749585039526,-151.0,0.00019178,2]
[365295712,1749585039537,-172.84,0.00019178,2]
[365295714,1749585039547,-420.0,0.00019199,2]
[365295716,1749585039556,-160.99647503,0.000192,2]
[365295718,1749585039566,-156.08806021,0.00019205,2]
[365295720,1749585039575,-690.38684414,0.0001921,2]
[365295722,1749585039585,-742.68,0.00019232,2]
[365295724,1749585039595,-3.97938168,0.00019232,2]
[365295727,1749585039609,-498.11061832,0.00019232,2]
[365295729,1749585039619,-550.28,0.00019232,2]
[365295731,1749585039628,-539.23,0.00019232,2]
[365295733,1749585039637,-652.75,0.00019232,2]
[365295735,1749585039647,-555.2590969,0.00019232,2]
[365295739,1749585039678,490.0,0.00016602,2]
[365295741,1749585039692,-3615.2009031,0.00019232,2]
[365295743,1749585039702,-30.77274028,0.00019232,2]
[365295745,1749585039714,-252.55725972,0.00019232,2]
[365295747,1749585039723,-490.0,0.00019232,2]
[365295749,1749585039733,-490.0,0.00019232,2]
[365295752,1749585039744,-490.0,0.00019232,2]
[365295754,1749585039754,-563.7548743,0.00019232,2]
[365295756,1749585039763,-572.19,0.00019232,2]
[365295758,1749585039773,-36297.82134498,0.00019242,2]
[365295761,1749585039798,-490.0,0.00017917,2]
[365295763,1749585039808,-1836.36514861,0.00019242,2]
[365295765,1749585039820,-2871.78755603,0.00019242,2]
[365295767,1749585039831,-770.46274308,0.00019242,2]
[365295770,1749585039843,-2397.51314636,0.00019242,2]
[365295774,1749585039875,486.02425793,0.00016438,2]
[365295778,1749585039905,490.0,0.00016438,2]
[365295782,1749585039936,264.06831957,0.00016767,2]
[365295786,1749585039970,470.0,0.00016602,2]
[365295791,1749585040004,490.0,0.00016438,2]
[365295795,1749585040032,480.0,0.00016438,2]
[365295800,1749585040071,364.98343523,0.00016602,2]
[365295805,1749585040114,-490.0,0.00018082,2]
[365295807,1749585040123,-490.0,0.00018246,2]
[365295809,1749585040134,-490.0,0.0001841,2]
[365295811,1749585040144,-490.0,0.00018575,2]
[365295813,1749585040154,-490.0,0.00018739,2]
[365295815,1749585040164,-490.0,0.00018904,2]
[365295817,1749585040173,-853.0,0.00018911,2]